Cogmind - Beta 13 @@@ ROGUE MODE // 2024.04.22 @ 03:49:34 Player: BrainTooSmol Result: Destroyed by G-47 Trooper with Particle Gun Performance ------------- Evolutions (2) 1000 Regions Visited (6) 1200 Robots Destroyed (128) 640 Value Destroyed (4048) 4048 Prototype IDs (12) 240 Alien Tech Used (0) 0 Bonus (1081) 1081 TOTAL SCORE: 8209 Bonus ------- High Alert Combat Kills 555 Follower Combat Kills 350 Entered Garrisons 200 Friendly Fire -24 Cogmind --------- Core Integrity 0/550 Matter 228/300 Energy 100/100 System Corruption 8% Temperature Hot (292) Movement Treading (160) Location -8/Materials Parts ------- > --- POWER (1) -------- (None) > --- PROPULSION (4) --- Light Treads Light Treads Light Treads > --- UTILITY (4) ------ Large Storage Unit Improved Targeting Computer > --- WEAPON (2) ------- Heavy Assault Cannon > --- INVENTORY (15) --- Light Nuclear Core Large Matter Pod (150) Advanced Weight Redist. System Advanced Visual Processing Unit Seismic Detector Kinecellerator Kinecellerator Medium Armor Plating Improved Medium Armor Plating Improved Medium Armor Plating Long-range Tractor Beam Missile Launcher Missile Launcher Peak State ------------ > --- POWER ------------ Light Nuclear Core > --- PROPULSION ------- Light Treads Light Treads Light Treads Light Treads > --- UTILITY ---------- Large Storage Unit Improved Targeting Computer Improved Medium Armor Plating Improved Medium Armor Plating > --- WEAPON ----------- Advanced Assault Cannon Advanced Assault Cannon > --- INVENTORY -------- Light Nuclear Core Light Treads Large Matter Pod Advanced Weight Redist. System Advanced Visual Processing Unit Seismic Detector Medium Armor Plating Improved Medium Armor Plating Improved Medium Armor Plating Long-range Tractor Beam Missile Launcher Missile Launcher [Rating: 29] Favorites ----------- Power Light Nuclear Core Engine Subdweller Power Source Power Core Light Nuclear Core Propulsion Light Treads Treads Light Treads Leg Aluminum Leg Wheel Subdweller Monowheel Flight Unit Flight Unit Utility Improved Targeting Computer Device Seismic Detector Storage Large Storage Unit Processor Improved Targeting Computer Hackware Hacking Suite Protection Improved Medium Armor Plating Weapon Battle Cannon Energy Gun EM Pulse Gun Ballistic Gun Assault Rifle Ballistic Cannon Battle Cannon Launcher Advanced EMP Blaster Impact Weapon Hammer Build | -11 -10 -10 -10 -8 -8 -8 ------- Run | Yrd Mat Min Sub Mat Gar Mat Slots Evolved 4 | . . . . 4 . . Power . | . . . . . . . Propulsion 2 | . . . . 2 . . Utility 2 | . . . . 2 . . Weapon . | . . . . . . . Parts Attached 105 | 1 11 . 22 37 21 13 Power 13 | . 2 . 4 4 2 1 Engine 6 | . . . 4 2 . . Core 7 | . 2 . . 2 2 1 Reactor . | . . . . . . . Propulsion 36 | . 1 . 9 14 8 4 Treads 19 | . . . . 7 8 4 Leg 2 | . 1 . . 1 . . Wheel 14 | . . . 9 5 . . Hover . | . . . . . . . Flight 1 | . . . . 1 . . Utility 29 | 1 4 . 3 11 5 5 Device 4 | 1 1 . 1 1 . . Storage 6 | . 3 . . 2 . 1 Processor 3 | . . . . 3 . . Hackware 1 | . . . . . 1 . Protection 15 | . . . 2 5 4 4 Artifact . | . . . . . . . Weapon 27 | . 4 . 6 8 6 3 Energy Gun 3 | . 1 . . 2 . . Energy Cannon . | . . . . . . . Ballistic Gun 6 | . 3 . 2 1 . . Ballistic Cannon 16 | . . . 4 4 5 3 Launcher 1 | . . . . 1 . . Special Weapon . | . . . . . . . Impact Weapon 1 | . . . . . 1 . Slashing Weapon . | . . . . . . . Piercing Weapon . | . . . . . . . Special Melee Weapon . | . . . . . . . Unidentified Prototypes 2 | . . . . 2 . . Parts Lost 19 | . 1 . 1 9 3 5 Power 3 | . . . 1 . 1 1 Propulsion 6 | . . . . 5 . 1 Utility 6 | . . . . 2 2 2 Weapon 4 | . 1 . . 2 . 1 Highest Loss Streak 6 | . 1 . 1 6 1 5 To Critical Strikes . | . . . . . . . Average Slot Usage (%) 91 | . 98 100 86 85 97 92 Engine 3 | . 8 . 10 . . . Core 7 | . 5 14 3 8 8 8 Treads 16 | . . . . 22 36 35 Leg 5 | . 27 28 2 . . . Wheel 8 | . . . 24 8 . . Device 3 | . 13 14 2 1 . . Storage 7 | . 13 14 2 8 9 9 Processor 7 | . . . . 16 9 9 Hackware 1 | . . . . . 1 9 Protection 9 | . . . 11 7 16 9 Ballistic Gun 5 | . 23 28 5 . . . Ballistic Cannon 13 | . . . 22 8 17 11 Naked Turns . | . . . . . . . Heaviest Build 51 | 15 15 14 30 44 51 43 Greatest Support 80 | 20 20 20 40 80 80 80 Greatest Overweight (x) 9 | . . . 1 9 . . Average Overweight (x) . | . . . . 1 . . Largest Inventory Capacity 15 | 8 15 8 8 15 15 15 Average Capacity 10 | 8 7 8 5 10 15 15 Most Carried 15 | 6 8 8 8 15 15 15 Average Carried 9 | 6 6 7 5 9 14 14 Final Capacity 15 | 8 8 8 5 15 15 15 Final Carried 15 | 6 7 8 5 15 15 13 Class Distribution -------------------- 47% | Scavenger-Mutant 22% | Subdweller-Mutant 20% | Mutant 8% | Commander-Mutant Dominant Class ---------------- Mutant | -10/Materials Mutant | -10/Mines Subdweller-Mutant | -10/Subcaves Scavenger-Mutant | -8/Materials Scavenger-Mutant | -8/Garrison Scavenger-Mutant | -8/Materials Resources | -11 -10 -10 -10 -8 -8 -8 ----------- Run | Yrd Mat Min Sub Mat Gar Mat Matter Collected 4202 | 206 187 115 796 1203 1125 570 Remotely . | . . . . . . . Salvage Created 3413 | 44 460 23 476 1014 679 717 Parts 221 | 7 27 5 43 53 38 48 Haulers Intercepted 4 | . . . . 3 . 1 Recyclers Shooed 5 | . 5 . . . . . Parts Field Recycled . | . . . . . . . Retrieved Matter . | . . . . . . . Parts Self-Destructed 19 | . . . 19 . . . Prevented . | . . . . . . . Kills | -11 -10 -10 -10 -8 -8 -8 ------- Run | Yrd Mat Min Sub Mat Gar Mat Combat Hostiles Destroyed 101 | . 9 . 20 26 28 18 Guns 21 | . 9 . 5 7 . . Cannons 79 | . . . 15 19 27 18 Classes Destroyed 16 | 1 3 . 3 4 3 2 Worker 5 | . . . . 4 . 1 Builder 1 | . . . . . . 1 Tunneler 3 | 2 . 1 . . . . Hauler 4 | . . . . 3 . 1 Recycler 2 | . . . . 2 . . Operator 1 | . 1 . . . . . Watcher 11 | . 2 . . 5 . 4 Swarmer 30 | . . . 6 12 10 2 Grunt 30 | . 9 . . 7 7 7 Brawler 2 | . . . . . 1 1 Sentry 17 | . . . . 7 7 3 Demolisher 3 | . . . . . . 3 Hunter 4 | . . . . . 2 2 Programmer 1 | . . . . . 1 . Artisan 1 | . . . 1 . . . Subdweller 14 | . . . 14 . . . Best Kill Streak 7 | 1 3 1 2 5 7 5 Combat Bots Only 7 | . 3 . 2 3 7 5 Max Kills in Single Turn 1 | 1 1 1 1 1 1 1 Gunslinging . | . . . . . . . Exploded . | . . . . . . . Melee . | . . . . . . . Uniques/NPCs Destroyed . | . . . . . . . Combat | -11 -10 -10 -10 -8 -8 -8 -------- Run | Yrd Mat Min Sub Mat Gar Mat Hostile Shots Fired 517 | . 52 . 73 150 133 109 Missed 121 | . 14 . 20 34 33 20 Damage Taken 5939 | . 490 . 876 1493 1326 1754 Core 775 | . 129 . 93 195 182 176 Absorbed by Shields . | . . . . . . . Regen/Repaired (Parts) 257 | . 190 . . 67 . . Core Remaining (%) 55 | 100 . . 11 . . . Volleys Fired 360 | 2 46 2 74 105 77 54 Largest 2 | 2 2 2 2 2 2 2 Hottest 96 | 60 60 40 78 78 96 96 Shots Fired 561 | 4 91 4 148 113 137 64 Gun 163 | 4 91 4 30 34 . . Cannon 398 | . . . 118 79 137 64 Launcher . | . . . . . . . Special . | . . . . . . . Kinetic 515 | 2 78 4 148 82 137 64 Thermal 31 | . . . . 31 . . Explosive . | . . . . . . . Electromagnetic 15 | 2 13 . . . . . Robot Hit Streak 18 | 2 8 4 16 18 14 18 Robot Miss Streak 6 | . 6 . 2 3 4 3 Penetration Max 1 | . . . . . 1 . Secondary Targets 1 | . 1 . . . . . Max Gunslinging Chain 1 | . 1 . . . . . Shots Hit Robots 329 | 2 52 3 68 81 78 45 Core Hits 156 | 2 25 2 30 43 31 23 Critical Kills 2 | . 1 . 1 . . . Critical Parts Destroyed . | . . . . . . . Critical Strikes 28 | . 1 . 2 7 8 10 Destroy 2 | . 1 . 1 . . . Blast 26 | . . . 1 7 8 10 Melee Attacks 4 | . . . . . 4 . Impact 4 | . . . . . 4 . Slashing . | . . . . . . . Piercing . | . . . . . . . Sneak Attacks . | . . . . . . . Combat Hostiles . | . . . . . . . Follow-up Attacks . | . . . . . . . Damage Inflicted 10091 | 25 650 27 1525 3301 2475 2088 Guns 1590 | 25 650 27 413 475 . . Cannons 8501 | . . . 1112 2826 2475 2088 Explosions . | . . . . . . . Melee . | . . . . . . . Ramming . | . . . . . . . Kinetic 9509 | . 525 27 1525 2869 2475 2088 Thermal 432 | . . . . 432 . . Explosive . | . . . . . . . Electromagnetic 150 | 25 125 . . . . . Impact . | . . . . . . . Slashing . | . . . . . . . Piercing . | . . . . . . . Highest Corruption 8 | . 1 1 1 . 5 8 Average Corruption 2 | . 1 1 1 . 5 5 Corruption Purged . | . . . . . . . Corruption Blocked . | . . . . . . . Effects 145 | . 8 3 25 . 79 30 Message Errors 35 | . 3 3 5 . 20 4 Matter Fused 31 | . 2 . 9 . 11 9 Heat Flow Errors 21 | . . . 5 . 14 2 Energy Discharges 23 | . 2 . . . 15 6 Parts Rejected 2 | . . . 1 . . 1 Data Loss (minor) 15 | . . . 2 . 7 6 Data Loss (major) 4 | . . . 2 . 2 . Misfires 7 | . . . 1 . 5 1 Alerts 4 | . . . . . 3 1 Weapon Failures 3 | . 1 . . . 2 . Overload Shots . | . . . . . . . Overflow Damage 559 | . . . 7 275 148 129 Projectiles 559 | . . . 7 275 148 129 Explosions . | . . . . . . . Melee . | . . . . . . . Knockbacks 56 | . . . 7 14 27 8 Impact . | . . . . . . . Kinetic 54 | . . . 7 13 26 8 Secondary 2 | . . . . 1 1 . Self-Inflicted Damage 50 | . . . . . 50 . Shots 1 | . . . . . 1 . Rammed . | . . . . . . . Targets Rammed . | . . . . . . . Kicked . | . . . . . . . Crushed . | . . . . . . . Highest Temperature 363 | . 63 4 202 276 363 326 Average Temperature 80 | . 15 3 87 86 85 89 Received Heat Transfer 1791 | . 276 . 120 576 234 585 Effects 4 | . . . . 1 . 3 Shutdowns 1 | . . . . . . 1 Energy Bleed 1 | . . . . 1 . . Interference 2 | . . . . . . 2 Siege Activations . | . . . . . . . Robots Corrupted . | . . . . . . . Combat Hostiles . | . . . . . . . Parts Fried 2 | . . . . . 2 . Impact Corruptions 1 | . . . . . 1 . Robots Melted . | . . . . . . . Combat Hostiles . | . . . . . . . Parts Melted 1 | . . . . 1 . . Heat Transferred 999 | . . . . 999 . . Parts Sabotaged . | . . . . . . . Parts Stolen . | . . . . . . . Parts Stripped . | . . . . . . . Power Chain Reactions . | . . . . . . . Alert | -11 -10 -10 -10 -8 -8 -8 ------- Run | Yrd Mat Min Sub Mat Gar Mat Peak Influence 1953 | 10 234 47 . 376 1953 1093 Initial 951 | . 6 47 . 26 39 951 Average 418 | 4 72 19 . 148 829 857 Maximum Alert Level 5 | . 1 . . 1 5 3 Low Security (%) 49 | 100 97 100 . 70 6 . Level 1 17 | . 2 . . 29 21 . Level 2 8 | . . . . . 24 10 Level 3 17 | . . . . . 19 89 Level 4 4 | . . . . . 13 . Level 5 4 | . . . . . 13 . High Security . | . . . . . . . Max Security . | . . . . . . . Squads Dispatched 5 | . 1 . . . . 4 Investigation 3 | . 1 . . . . 2 Extermination . | . . . . . . . Reinforcement . | . . . . . . . Assault 2 | . . . . . . 2 Garrison . | . . . . . . . Intercept . | . . . . . . . Searches Triggered . | . . . . . . . Construction Impeded . | . . . . . . . Haulers Reinforced . | . . . . . . . Active Scanning Responses . | . . . . . . . Cargo Convoy Interrupts . | . . . . . . . Stealth | -11 -10 -10 -10 -8 -8 -8 --------- Run | Yrd Mat Min Sub Mat Gar Mat Distress Signals 6 | . . 2 . 2 . 2 Communications Jammed . | . . . . . . . Distress Signals . | . . . . . . . Times Spotted 159 | . 22 . 24 37 38 38 Peak Tracking Total 11 | . 5 . 3 5 7 11 Tactical Retreats 8 | . . . 4 1 1 2 Traps | -11 -10 -10 -10 -8 -8 -8 ------- Run | Yrd Mat Min Sub Mat Gar Mat Traps Triggered 9 | . 1 . 1 4 2 1 Indirectly . | . . . . . . . Trap Hack Attempts . | . . . . . . . Triggered . | . . . . . . . Disarmed . | . . . . . . . Reprogrammed 2 | . . . . 2 . . Reused . | . . . . . . . Traps Extracted . | . . . . . . . Installed 1 | . . . 1 . . . Triggered 2 | . 1 . 1 . . . Machines | -11 -10 -10 -10 -8 -8 -8 ---------- Run | Yrd Mat Min Sub Mat Gar Mat Machines Disabled 6 | . 1 . . 1 3 1 Max in Single Turn 1 | . 1 . . 1 1 1 Phase Generator 1 | . . . . . 1 . Machines Repaired . | . . . . . . . Machines Dismantled . | . . . . . . . Machines Sabotaged . | . . . . . . . Overloaded Fab Kills . | . . . . . . . Hacking | -11 -10 -10 -10 -8 -8 -8 --------- Run | Yrd Mat Min Sub Mat Gar Mat Machines Accessed 37 | . 9 . 2 15 4 7 Terminals 26 | . 6 . . 10 4 6 Fabricators . | . . . . . . . Repair Stations 2 | . 1 . . 1 . . Recycling Units 4 | . 2 . . 1 . 1 Scanalyzers 2 | . . . . 2 . . Garrison Access 1 | . . . . 1 . . Total Hacks 129 | . 36 . 12 50 8 23 Successful 77 | . 26 . 12 28 2 9 Failed 52 | . 10 . . 22 6 14 Catastrophic 5 | . 2 . . 2 . 1 Database Lockouts . | . . . . . . . Manual 52 | . 18 . . 21 . 13 Terminals 78 | . 22 . . 29 8 19 Fabricators . | . . . . . . . Repair Stations 13 | . 10 . . 3 . . Recycling Units 14 | . 4 . . 6 . 4 Scanalyzers 11 | . . . . 11 . . Garrison Access 1 | . . . . 1 . . Terminal Hacks 33 | . 7 . 12 8 2 4 Record 11 | . . . 11 . . . Part Schematic 4 | . 3 . . 1 . . Open Door 1 | . . . . . 1 . Level Access Points 1 | . . . . 1 . . Branch Access Points 1 | . . . . . . 1 Terminal Index 1 | . 1 . . . . . Recycling Unit Index 1 | . 1 . . . . . Scanalyzer Index 1 | . . . . 1 . . Alert Level 1 | . . . . . . 1 Unreport Threat 3 | . . . . 1 . 2 Locate Traps 3 | . 1 . . 2 . . Reprogram Traps 1 | . . . . 1 . . Security Status 1 | . . . . 1 . . Zone Layout 1 | . 1 . . . . . Garrison Registry 1 | . . . . . 1 . Derelict Proto ID Bank 1 | . . . 1 . . . Fabricator Hacks . | . . . . . . . Repair Station Hacks 12 | . 10 . . 2 . . Scan Component 6 | . 5 . . 1 . . Repair 6 | . 5 . . 1 . . Recycling Unit Hacks 4 | . 3 . . 1 . . Report Inventory 2 | . 1 . . 1 . . Retrieve Matter 1 | . 1 . . . . . Retrieve Components 1 | . 1 . . . . . Scanalyzer 10 | . . . . 10 . . Insert Component 5 | . . . . 5 . . Analyze 5 | . . . . 5 . . Garrison Access Hacks 1 | . . . . 1 . . Unlock Access 1 | . . . . 1 . . Unauthorized Hacks 17 | . 6 . . 6 . 5 Terminals 13 | . 6 . . 4 . 3 Track 1 | . 1 . . . . . Assimilate 2 | . 1 . . 1 . . Botnet 8 | . 3 . . 3 . 2 Operators 2 | . 1 . . . . 1 Fabricators . | . . . . . . . Repair Stations . | . . . . . . . Recycling Units 4 | . . . . 2 . 2 Reject 2 | . . . . 1 . 1 Mask 2 | . . . . 1 . 1 Scanalyzers . | . . . . . . . Garrison Access . | . . . . . . . Data Cores Recovered . | . . . . . . . Used . | . . . . . . . Hacking Detections 27 | . 6 . . 12 3 6 Full Trace Events 4 | . . . . 1 1 2 Feedback Events . | . . . . . . . Feedback Blocked . | . . . . . . . Robot Schematics Acquired . | . . . . . . . Robots Built . | . . . . . . . Authchips . | . . . . . . . Time . | . . . . . . . Total Robot Build Rating . | . . . . . . . Part Schematics Acquired 9 | . 3 . . 6 . . Parts Built . | . . . . . . . Authchips . | . . . . . . . Time . | . . . . . . . Total Part Build Rating . | . . . . . . . Parts Repaired 6 | . 5 . . 1 . . Time 161 | . 142 . . 19 . . Parts Recycled . | . . . . . . . Recycled Matter . | . . . . . . . Retrieved Matter . | . . . . . . . Retrieved Components 8 | . 8 . . . . . Parts Scanalyzed 5 | . . . . 5 . . Part Schematics Acquired 5 | . . . . 5 . . Parts Damaged . | . . . . . . . Bothacking | -11 -10 -10 -10 -8 -8 -8 ------------ Run | Yrd Mat Min Sub Mat Gar Mat Used RIF Installer . | . . . . . . . Robots Hacked . | . . . . . . . Non-combat . | . . . . . . . Combat . | . . . . . . . Robot Hacks Applied . | . . . . . . . Relay Couplers Released . | . . . . . . . Fabnet Peak Effective % . | . . . . . . . Robots Rewired 9 | . . . . . 9 . Allies Hacked . | . . . . . . . Hacks Repelled . | . . . . . . . Allies | -11 -10 -10 -10 -8 -8 -8 -------- Run | Yrd Mat Min Sub Mat Gar Mat Total Allies 13 | . 1 . . 1 11 . Largest Group 9 | . 1 1 . 1 9 8 Highest-Rated Group 204 | . 10 10 . 10 204 129 Highest-Rated Ally 40 | . 10 10 . 10 40 25 Total Orders 18 | . 2 . . 2 10 4 STAY 12 | . 1 . . 1 8 2 FOLLOW 6 | . 1 . . 1 2 2 Ally Attacks 51 | . . . . . 49 2 Total Damage 1366 | . . . . . 1306 60 Kills 12 | . . . . . 11 1 Allies Corrupted . | . . . . . . . Allies Melted . | . . . . . . . Intel | -11 -10 -10 -10 -8 -8 -8 ------- Run | Yrd Mat Min Sub Mat Gar Mat Robot Analysis Total . | . . . . . . . Derelict Logs Recovered 1 | . . . 1 . . . Drone Launches . | . . . . . . . Drone Recoveries . | . . . . . . . Exploration | -11 -10 -10 -10 -8 -8 -8 ------------- Run | Yrd Mat Min Sub Mat Gar Mat Turns Passed 13456 | 61 1366 776 3579 3494 2905 1275 Spaces Moved 8245 | 30 699 448 2690 2233 1492 653 Core 1 | . . . . 1 . . Treads 2771 | . . . . 626 1492 653 Legs 1382 | 30 699 448 205 . . . Wheels 4091 | . . . 2485 1606 . . Hover . | . . . . . . . Flight . | . . . . . . . Fastest Speed 80 | 120 120 120 110 80 160 160 Average Speed 129 | 120 120 120 112 123 160 160 Slowest Speed 500 | 120 120 120 120 500 160 160 Overloaded Moves . | . . . . . . . Propulsion Burnouts . | . . . . . . . Robots Hopped . | . . . . . . . Cave-ins Triggered . | . . . . . . . Exploration Rate (%) 75 | 3 99 90 94 94 98 52 Regions Visited 6 Branch Regions 2 Pre-discovered Areas 2 | . . 1 1 . . . Known Exits Taken 1 | . . . . 1 . . Unknown Exits Taken 4 | 1 1 1 1 . . . Scrap Searched 21 | . . 2 19 . . . Spaces Dug 3 | . . . . . 1 2 Terrain Destroyed 128 | . . . . 19 91 18 Melee . | . . . . . . . Projectile 43 | . . . . 19 6 18 AOE 85 | . . . . . 85 . Terrain Rammed . | . . . . . . . Walls Destroyed . | . . . . . . . Machines Disabled . | . . . . . . . Actions | -11 -10 -10 -10 -8 -8 -8 --------- Run | Yrd Mat Min Sub Mat Gar Mat Total 10452 | 50 1138 684 3098 2813 1866 803 Wait 1533 | 18 373 228 273 393 179 69 Move 8239 | 29 698 447 2689 2232 1491 653 Hop . | . . . . . . . Pick Up 40 | . 6 4 2 19 8 1 Fast Attach 64 | 1 6 . 19 30 5 3 Attach 11 | . 1 . . 3 6 1 Detach 4 | . . . . 2 2 . Swap 30 | . 4 . 3 4 10 9 Drop 90 | . 4 3 26 25 19 13 Fire 360 | 2 46 2 74 105 77 54 Melee 4 | . . . . . 4 . Ram . | . . . . . . . Kick . | . . . . . . . Crush . | . . . . . . . Escape Stasis . | . . . . . . . Rewire 65 | . . . . . 65 . Trap 1 | . . . 1 . . . Miscellaneous 11 | . . . 11 . . . Route ------- -11/Scrapyard -10/Materials (discovered 5 exits: [*Mat x3] / [*Min x2]) -10/Mines (discovered 4 exits: [*Mat x2] / [*Exi] / *Sub) -10/Subcaves (discovered 2 exits: *Mat x2) -8/Materials (discovered 5 exits: *Fac x3 / *Sto / Gar) -8/Garrison (discovered 3 exits: *Mat x3) -8/Materials (discovered 2 exits: *Fac / Sto) History --------- Turn | Location | Event 1 | -11/Scrapyard | Discovered new exit (range 2) 62 | -11/Scrapyard | Entered Materials 308 | -10/Materials | Build established: Mutant 379 | -10/Materials | Discovered new exit (range 16) 622 | -10/Materials | Discovered new exit (range 6) 709 | -10/Materials | Discovered new exit (range 4) 806 | -10/Materials | Discovered new exit (range 9) 921 | -10/Materials | Repaired Lgt. Nuclear Core 949 | -10/Materials | Repaired Assault Rifle 976 | -10/Materials | Repaired Aluminum Leg 1004 | -10/Materials | Repaired Seismic Detector 1031 | -10/Materials | Repaired Sml. Storage Unit 1150 | -10/Materials | Core integrity fell below 50% 1271 | -10/Materials | Discovered new exit (range 15) 1428 | -10/Materials | Entered Mines 1428 | -10/Mines | Accompanied by 1 ally 1429 | -10/Mines | Learned location of Storage (-8) 1429 | -10/Mines | Assembled infested the area 1528 | -10/Mines | Discovered new exit (range 5) 1759 | -10/Mines | Found a hidden stash of uninstalled traps 1808 | -10/Mines | Discovered new exit (range 7) 1917 | -10/Mines | Discovered new exit (range 5) 2162 | -10/Mines | Discovered new exit (range 3) 2204 | -10/Mines | Entered Subcaves 2308 | -10/Subcaves | Shifting Twisted Machinery released Battle Cannon 2330 | -10/Subcaves | Shifting Twisted Machinery released Sub. Machine Gun 2377 | -10/Subcaves | Learned location of Zion (-6) 2455 | -10/Subcaves | A swath of the cavern ceiling suddenly collapsed 2669 | -10/Subcaves | Disturbed a concealed Subdweller 2766 | -10/Subcaves | Core integrity fell below 20% 2781 | -10/Subcaves | Discovered new exit (range 13) 2816 | -10/Subcaves | Shifting Twisted Machinery released Battle Rifle 2870 | -10/Subcaves | Shifting Twisted Machinery released Scrap Shield 3045 | -10/Subcaves | Discovered new exit (range 11) 3177 | -10/Subcaves | Build established: Subdweller-Mutant 3636 | -10/Subcaves | Shifting Twisted Machinery released Sub. Laser 3654 | -10/Subcaves | Disturbed a concealed Subdweller 3786 | -10/Subcaves | Shifting Twisted Machinery released Scrap Shield 3912 | -10/Subcaves | Visited 4L-MR0's lab 4723 | -10/Subcaves | A swath of the cavern ceiling suddenly collapsed 5045 | -10/Subcaves | Visited Clippyterm 5048 | -10/Subcaves | Learned Factory fabricator intel 5783 | -10/Subcaves | Entered Materials 5783 | -8/Materials | Evolved 4 slots: Propulsion x2, Utility x2 5783 | -8/Materials | Discovered new exit (range 8) 6027 | -8/Materials | Lost 6 parts (2n2u2w) 6276 | -8/Materials | Build established: Scavenger-Mutant 6331 | -8/Materials | Repaired Hvy. Assault Cannon 6347 | -8/Materials | Discovered new exit (range 3) 6678 | -8/Materials | Identified exit to Factory 9273 | -8/Materials | Identified exit to Garrison 9277 | -8/Materials | Entered Garrison 9277 | -8/Garrison | Accompanied by 1 ally 9330 | -8/Garrison | Destroyed 7 combat bots 9404 | -8/Garrison | Core integrity fell below 50% 9656 | -8/Garrison | Triggered checkpoint 9728 | -8/Garrison | Triggered checkpoint 9774 | -8/Garrison | Triggered checkpoint 10024 | -8/Garrison | Triggered checkpoint 10398 | -8/Garrison | Phase Generator disabled 10768 | -8/Garrison | Triggered checkpoint 10792 | -8/Garrison | Build established: Commander-Mutant 10876 | -8/Garrison | Triggered checkpoint 11033 | -8/Garrison | Discovered new exit (range 15) 11292 | -8/Garrison | Triggered checkpoint 11338 | -8/Garrison | Discovered new exit (range 14) 11492 | -8/Garrison | Discovered new exit (range 7) 11550 | -8/Garrison | Triggered checkpoint 11693 | -8/Garrison | Rescued a captive Derelict 11694 | -8/Garrison | Rescued a captive Derelict 11774 | -8/Garrison | Triggered checkpoint 11928 | -8/Garrison | Discovered new exit (range 37) 11928 | -8/Garrison | Discovered new exit (range 32) 11928 | -8/Garrison | Discovered new exit (range 54) 11995 | -8/Garrison | Build established: Scavenger-Mutant 12182 | -8/Garrison | Entered Materials 12182 | -8/Materials | Accompanied by 8 allies 12411 | -8/Materials | Identified exit to Storage 12479 | -8/Materials | Discovered exit to Factory (range 16) 12982 | -8/Materials | First assault squad dispatched 13054 | -8/Materials | Core integrity fell below 20% 13457 | -8/Materials | Destroyed by G-47 Trooper with Particle Gun Last Messages --------------- 13435_ B-36 Bruiser unfolds itself. 13435_ I-25 Savior unfolds itself. 13435_ Hvy. Assault Cannon destroyed. 13436_ B-36 Bruiser Hammer blasted off. 13437_ R-06 Scavenger collects Lgt. Nuclear Core. 13439_ U-05 Engineer builds a Wall. 13441_ G-47 Trooper destroyed. 13444_ D-53 Grenadier knocked back. 13446_ D-53 Grenadier destroyed. 13446_ Lgt. Nuclear Core destroyed. 13446_ System corrupted by crushing effect (+2). 13447_ Critical hit (Burn: +37). 13448_ Lgt. Treads destroyed. 13449_ System corrupted: Hvy. Assault Cannon rejected. 13449_ Acquired Hvy. Assault Cannon. 13450_ Slug penetrates Material Processor. 13455_ Hacking Suite destroyed. 13455_ System corrupted by crushing effect (+1). 13456_ Lgt. Armor Plating destroyed. [Achievement: I Think I Know What's Going On] Map ----- +----------------------------------------------------+ | # # ""???# + #?????????????# """ | | #! ?# ????# = # #?????????????# """" | | ?? ???# ????# # #?????????????# """" | | ?###+###################### #?????????????# """" | | ## #?????????????# """ | | #?????????????# | | #?????????????# | | ###################+ | | ## % | | ## ] | | ## %! """ ] | | ## ]/ """"" ] #################### | | ## ! """"" # #????????? | | ## """"" # """" #????????? | | + "" + ""S"" #????????? | | ## ! # "" "" #????????? | | ## # #????????? | | ### """ """ # % #????????? | | # % """"" """"" #% #????????? | | # ## """"" """ " # #????????? | | # ## """" """ " a###### ####????????? | | # ## """ gg"" #???####???????????? | | ! # ## % % i #####??????????????? | | # ## %% g % [g r ##??????????????? | | # ## b!g %=#############???? | | # ## @/%%g % [ ??? | | # #######"#+############## %%[ ??? | | # # ## T #?????????# =% ??? | | # # ## #?????????# [ ############ ???? | | ### # ## """ #?????????# ##??????????????? | | ### # ## """ #?????????# ##??????????????? | | # ## """ #?????????# !%#???????????????? | | # ## #?????????# #???????????????? | | ###+####################% #???????????????? | | ### #???????????????? | | ??# %%* #???????????????? | | ??# ! #???????????????? | | ??##+################### #???????????????? | | ???????????????????????# #???????????????? | | ???????????????????????# ??????????????? | | ???????????????????????# ????????????? | | ???????????????????????# ???????????? | | ???????????????????????# ############??????????? | | ???????????????????????# #?????????????????????? | | ???????????????????????# #?????????????????????? | | ???????????????????????# #?????????????????????? | | ???????????????????????# #?????????????????????? | | ???????????????????????# #?????????????????????? | | ???????????????????????# #?????????????????????? | | ???????????????????????? ??????????????????????? | +----------------------------------------------------+ Best States ------------- Heat Dissipation 41 Energy Generation 18 Energy Capacity 265 Matter Stores 300 Matter Capacity 300 Sight Range 20 Terrain Scan Density 10 Armor Coverage 950 Evasion (%) 55 Targeting Accuracy 6 Recoil Reduction 4 Offensive Hacking 10 Item Schematics ----------------- Grenade Launcher | -10/Materials | Hacked Seismic Detector | -10/Materials | Hacked Sml. Storage Unit | -10/Materials | Hacked Hacking Suite | -8/Materials | Hacked Cesium-ion Thruster | -8/Materials | Scanalyzed Adv. Visual Processing Unit | -8/Materials | Scanalyzed Hvy. Assault Cannon | -8/Materials | Scanalyzed Imp. Medium Armor Plating | -8/Materials | Scanalyzed Lrn. Tractor Beam | -8/Materials | Scanalyzed Robot Schematics ------------------ None Fabricated ------------ Nothing Alien Tech Used ----------------- None Achievements -------------- I Think I Know What's Going On Challenges ------------ None Game ------ Seed TeslaGrenadeMantle Manual? 0 Play Time 01:36:25 Cumulative 60.0 hours Start 2024.04.22 @ 02:14:43 End 2024.04.22 @ 03:49:34 Sessions 1 Manual Loads 0 Difficulty Rogue Special Mode None Game No. 37 Rogue 37 Adventurer 0 Explorer 0 Win Type - Total 1 Types 1/0/0/0/0/0/0/0/0 Lore% 50 Gallery% 39 Achievement% 39 Wizard Run 0 Options --------- Layout 0 ASCII 0 Keyboard 0 Movement Mouse Keybinds 0 Fullscreen 1 Font 18/SmallcapsGlow Map View 76x50 Zoom Use 0% Tactical HUD 1 Map Filters NONE Filters NONE Steam 1 RUN: 8bc8a3f6-8f2f-4a61-82f3-494d5c905089